bitfinex-derivatives/quotes_SOLF0:USTF0_20260104
["timestamp","ask_amount","ask_price","bid_price","bid_amount"]
[1767566619856,6.7185,134.02,133.94,8.77144884]
[1767566620056,5.62483898,134.01,133.94,8.77144884]
[1767566620261,6.7185,134.02,133.94,8.77144884]
[1767566620458,5.62547511,134.01,133.94,8.77144884]
[1767566620762,6.7185,134.02,133.94,8.77144884]
[1767566620955,5.62547625,134.01,133.94,8.77144884]
[1767566621262,6.7185,134.02,133.94,8.77144884]
[1767566621459,5.62617152,134.01,133.94,8.77144884]
[1767566621659,6.7185,134.02,133.94,8.77144884]
[1767566621854,5.62617152,134.01,133.94,8.77144884]
[1767566622059,6.7185,134.02,133.94,8.77144884]
[1767566622255,5.62652361,134.01,133.94,8.77144884]
[1767566622461,6.7185,134.02,133.94,8.77144884]
[1767566622662,5.62693345,134.01,133.94,8.77144884]
[1767566622862,6.7185,134.02,133.94,8.77144884]
[1767566623055,5.62693345,134.01,133.94,8.77144884]
[1767566623257,6.7185,134.02,133.94,8.77144884]
[1767566623458,5.62756648,134.01,133.94,8.77144884]
[1767566623765,6.7185,134.02,133.94,8.77144884]
[1767566623965,5.62756648,134.01,133.94,8.77144884]
[1767566624165,6.7185,134.02,133.94,8.77144884]
[1767566624367,5.62824971,134.01,133.94,8.77144884]
[1767566624565,6.7185,134.02,133.94,8.77144884]
[1767566624763,5.62824971,134.01,133.94,8.77144884]
[1767566624963,6.7185,134.02,133.94,8.77144884]
[1767566625163,5.62824971,134.01,133.94,8.77144884]
[1767566625364,6.7185,134.02,133.94,8.77144884]
[1767566625664,5.62859844,134.01,133.94,8.77144884]
[1767566625865,6.7185,134.02,133.94,8.77144884]
[1767566626065,5.62859844,134.01,133.94,8.77144884]
[1767566626364,6.7185,134.02,133.94,8.77144884]
[1767566626567,5.62933881,134.01,133.94,8.77144884]
[1767566626767,6.7185,134.02,133.94,8.77144884]
[1767566626967,5.62933881,134.01,133.94,8.77144884]
[1767566627171,6.7185,134.02,133.94,8.77144884]
[1767566627375,5.63014259,134.01,133.94,8.77144884]
[1767566627576,6.7185,134.02,133.94,8.77144884]
[1767566627776,6.7197,134.0,133.92,7.05840799]
[1767566627975,5.63056953,133.99,133.92,7.05840799]
[1767566628175,94.9197,134.0,133.92,7.05840799]
[1767566628474,5.63159337,133.99,133.92,7.05840799]
[1767566628773,94.9197,134.0,133.92,7.05840799]
[1767566628973,5.63159223,133.99,133.92,7.05840799]
[1767566629174,6.72,133.99,133.92,7.05840799]
[1767566629573,5.63256809,133.98,133.92,7.05840799]
[1767566629774,6.72,133.99,133.92,7.05840799]
[1767566629971,5.63256809,133.98,133.92,7.05840799]
[1767566630170,6.72,133.99,133.92,7.05840799]
[1767566630371,5.63722802,133.98,133.92,7.05840799]
[1767566630571,6.72,133.99,133.92,7.05840799]
[1767566630771,111.89396887,133.98,133.9,0.33540799]
[1767566630974,198.39002802,133.97,133.88,2.04914884]
[1767566631181,6.7231,133.93,133.86,2.04914884]
[1767566631376,5.63722802,133.92,133.86,2.04914884]
[1767566631976,5.63722802,133.92,133.86,0.33540799]
[1767566633472,5.63722802,133.92,133.84,8.44084085]
[1767566633473,100.56112802,133.92,133.84,2.04914884]
[1767566633667,94.9239,133.92,133.84,1.71374085]
[1767566633976,94.9239,133.92,133.85,0.33540799]
[1767566634381,88.2,133.92,133.85,0.33540799]
[1767566637488,88.2,133.92,133.85,6.7268]
[1767566637685,88.2,133.92,133.85,7.06220799]
[1767566638080,88.2,133.92,133.86,2.04914884]
[1767566638584,88.2,133.92,133.86,8.77544884]
[1767566638786,88.2,133.92,133.86,7.06170799]
[1767566640588,88.2,133.92,133.87,7.05192714]
[1767566640894,1.71374085,133.94,133.87,0.32622714]
[1767566641591,1.71374085,133.94,133.88,6.7251]
[1767566642485,9.39873066,133.99,133.9,0.32622714]
[1767566642683,5.61490444,133.98,133.9,0.32622714]
[1767566642883,97.63873066,133.99,133.9,0.32622714]
[1767566643079,5.61431811,133.98,133.9,0.32622714]
[1767566643292,97.63873066,133.99,133.9,0.32622714]
[1767566643489,5.61419168,133.98,133.9,0.32622714]
[1767566643687,97.63873066,133.99,133.91,6.7237]
[1767566643896,5.6137995,133.98,133.91,6.7237]
[1767566644085,97.63873066,133.99,133.91,6.7237]
[1767566644286,5.61394715,133.98,133.91,6.7237]
[1767566644487,97.63873066,133.99,133.91,6.7237]
[1767566644688,5.61394715,133.98,133.91,6.7237]
[1767566644886,97.63873066,133.99,133.91,6.7237]
[1767566645093,5.61394715,133.98,133.91,6.7237]
[1767566645289,97.63873066,133.99,133.91,6.7237]
[1767566645584,5.61415863,133.98,133.91,6.7237]
[1767566645784,97.63873066,133.99,133.91,6.7237]
[1767566645982,5.61415863,133.98,133.91,6.7237]
[1767566646180,97.63873066,133.99,133.91,6.7237]
[1767566646380,5.61443473,133.98,133.91,6.7237]
[1767566646597,97.63873066,133.99,133.91,6.7237]
[1767566646797,5.61448484,133.98,133.91,6.7237]
[1767566646984,97.63873066,133.99,133.91,6.7237]
[1767566647190,5.61448484,133.98,133.91,6.7237]
[1767566647388,97.63873066,133.99,133.91,6.7237]
[1767566647589,5.61481268,133.98,133.91,6.7237]
[1767566647789,97.63873066,133.99,133.91,6.7237]
[1767566647996,5.61481268,133.98,133.91,6.7237]
[1767566648199,97.63873066,133.99,133.91,6.7237]
[1767566648390,5.61520902,133.98,133.91,6.7237]
[1767566648688,97.63873066,133.99,133.91,6.7237]
[1767566648886,5.61520902,133.98,133.91,6.7237]
[1767566649193,97.63873066,133.99,133.91,6.7237]
[1767566649399,5.61567547,133.98,133.91,6.7237]
[1767566649595,97.63873066,133.99,133.91,6.7237]
[1767566649796,5.61567547,133.98,133.91,6.7237]
[1767566650001,97.63873066,133.99,133.91,6.7237]
[1767566650194,5.61567547,133.98,133.91,6.7237]
[1767566650495,97.63873066,133.99,133.91,7.04992714]
[1767566650801,94.9603,133.99,133.92,0.32622714]
[1767566653599,6.7203,133.99,133.92,0.32622714]
[1767566653795,94.9403,133.99,133.92,0.32622714]
[1767566661109,94.9403,133.99,133.92,7.04952714]
[1767566664210,5.62842126,133.98,133.92,7.04952714]
[1767566664411,94.9403,133.99,133.92,7.04952714]
[1767566664598,5.62842126,133.98,133.92,7.04952714]
[1767566664804,94.9403,133.99,133.92,7.04952714]
[1767566665005,5.62842126,133.98,133.92,7.04952714]
[1767566665201,94.9403,133.99,133.92,7.04952714]
[1767566665407,5.62914052,133.98,133.92,7.04952714]
[1767566665611,94.9403,133.99,133.92,7.04952714]
[1767566665908,5.62914052,133.98,133.92,7.04952714]
[1767566666116,94.9403,133.99,133.92,7.04952714]
[1767566666309,5.62989467,133.98,133.92,7.04952714]
[1767566666610,94.9403,133.99,133.92,7.04952714]
[1767566666809,5.62989467,133.98,133.92,7.04952714]
[1767566667014,94.9403,133.99,133.92,7.04952714]
[1767566667214,5.62989467,133.98,133.92,7.04952714]
[1767566667405,94.9403,133.99,133.92,7.04952714]
[1767566667606,5.63068089,133.98,133.92,7.04952714]
[1767566667809,94.9403,133.99,133.92,7.04952714]
[1767566668009,5.63068089,133.98,133.92,7.04952714]
[1767566668316,94.9403,133.99,133.92,7.04952714]
[1767566668611,5.63150553,133.98,133.92,7.04952714]
[1767566668811,94.9403,133.99,133.92,7.04952714]
[1767566669011,5.63150553,133.98,133.92,7.04952714]
[1767566669212,94.9403,133.99,133.92,7.04952714]
[1767566669412,5.63236976,133.98,133.92,7.04952714]
[1767566669612,94.9403,133.99,133.92,7.04952714]
[1767566669912,5.63236976,133.98,133.92,7.04952714]
[1767566670113,94.9403,133.99,133.92,7.04952714]
[1767566670315,5.63326905,133.98,133.92,7.04952714]
[1767566670516,94.9403,133.99,133.92,7.04952714]
[1767566670709,5.63326905,133.98,133.92,7.04952714]
[1767566671017,94.9403,133.99,133.92,7.04952714]
[1767566671214,5.63326905,133.98,133.92,7.04952714]
[1767566671404,94.9403,133.99,133.92,7.04952714]
[1767566671608,5.63421805,133.98,133.92,7.04952714]
[1767566671814,94.9403,133.99,133.92,7.04952714]
[1767566672013,5.63421805,133.98,133.92,7.04952714]
[1767566672217,94.9403,133.99,133.92,7.04952714]
[1767566672419,5.63521721,133.98,133.92,7.04952714]
[1767566672612,94.9403,133.99,133.92,7.04952714]
[1767566672812,5.63521721,133.98,133.92,7.04952714]
[1767566673016,94.9403,133.99,133.92,7.04952714]
[1767566673319,5.63521721,133.98,133.92,7.04952714]
[1767566673519,94.9403,133.99,133.92,7.04952714]
[1767566673714,5.63540668,133.98,133.92,7.04952714]
[1767566673913,94.9403,133.99,133.92,7.04952714]
[1767566674215,5.63540554,133.98,133.92,7.04952714]
[1767566674410,94.9403,133.99,133.92,7.04952714]
[1767566674607,5.63563162,133.98,133.92,7.04952714]
[1767566674816,94.9403,133.99,133.92,7.04952714]
[1767566675009,5.63563162,133.98,133.92,7.04952714]
[1767566675216,94.9403,133.99,133.92,7.04952714]
[1767566675509,5.6357434,133.98,133.92,7.04952714]
[1767566675714,94.9403,133.99,133.92,7.04952714]
[1767566675922,5.6357434,133.98,133.92,7.04952714]
[1767566676118,94.9403,133.99,133.92,7.04952714]
[1767566676415,5.63574599,133.98,133.92,7.04952714]
[1767566676616,94.9403,133.99,133.92,7.04952714]
[1767566676816,5.63574599,133.98,133.92,7.04952714]
[1767566677018,94.9403,133.99,133.92,7.04952714]
[1767566677210,5.63674445,133.98,133.92,7.04952714]
[1767566677414,94.9403,133.99,133.92,7.04952714]
[1767566677615,5.63690875,133.98,133.92,7.04952714]
[1767566677816,94.9403,133.99,133.92,7.04952714]
[1767566678017,5.63690875,133.98,133.92,7.04952714]
[1767566678218,94.9403,133.99,133.92,7.04952714]
[1767566678518,5.63830877,133.98,133.92,7.04952714]
[1767566678720,94.9403,133.99,133.92,7.04952714]
[1767566678910,5.63830877,133.98,133.92,7.04952714]
[1767566679117,5.64001793,133.97,133.92,7.04952714]
[1767566679318,94.9403,133.99,133.92,7.04952714]
[1767566679617,5.64020296,133.98,133.92,7.04952714]
[1767566679818,5.64020296,133.97,133.92,7.04952714]
[1767566680122,94.9403,133.99,133.92,7.04952714]
[1767566680324,5.64204957,133.98,133.92,7.04952714]
[1767566680522,5.64204957,133.97,133.92,7.04952714]
[1767566680720,94.9403,133.99,133.92,7.04952714]
[1767566680923,5.64204957,133.98,133.92,7.04952714]
[1767566681124,5.64204957,133.97,133.92,7.04952714]
[1767566681326,94.9403,133.99,133.92,7.04952714]
[1767566681524,5.64420569,133.98,133.92,7.04952714]
[1767566681728,5.64420569,133.97,133.92,7.04952714]
[1767566681919,94.9403,133.99,133.92,7.04952714]
[1767566682116,5.64420838,133.98,133.92,7.04952714]
[1767566682321,5.64420838,133.97,133.92,7.04952714]
[1767566682520,94.9403,133.99,133.92,7.04952714]
[1767566682720,5.64678178,133.98,133.92,7.04952714]
[1767566682924,5.64678178,133.97,133.92,7.04952714]
[1767566683126,5.64881665,133.96,133.92,7.04952714]
[1767566683432,94.9403,133.99,133.92,7.04952714]
[1767566683634,5.64896209,133.98,133.92,7.04952714]
[1767566683835,5.64896209,133.97,133.92,7.04952714]
[1767566684030,5.64896209,133.96,133.92,7.04952714]
[1767566684230,94.9403,133.99,133.92,7.04952714]
[1767566684531,5.65165116,133.98,133.92,7.04952714]
[1767566684730,5.65165116,133.97,133.92,7.04952714]
[1767566685030,5.65165116,133.96,133.92,7.04952714]
[1767566685226,94.9403,133.99,133.92,7.04952714]
[1767566685423,5.6517701,133.98,133.92,7.04952714]
[1767566685622,5.6517701,133.97,133.92,7.04952714]
[1767566685833,5.6517701,133.96,133.92,7.04952714]
[1767566686028,94.9403,133.99,133.92,7.04952714]
[1767566686225,5.65372649,133.98,133.92,7.04952714]
[1767566686431,5.65372649,133.97,133.92,7.04952714]
[1767566686631,5.65372649,133.96,133.92,7.04952714]
[1767566686832,94.9403,133.99,133.92,7.04952714]
[1767566687135,5.6537796,133.98,133.92,7.04952714]
[1767566687338,94.9403,133.99,133.92,7.04952714]
[1767566687339,5.6537796,133.97,133.92,7.04952714]
[1767566687632,5.6537796,133.96,133.92,7.04952714]
[1767566687837,94.9403,133.99,133.92,7.04952714]
[1767566688042,5.65643197,133.98,133.92,7.04952714]
[1767566688243,5.65643197,133.97,133.92,7.04952714]
[1767566688440,94.9403,133.99,133.92,7.04952714]
[1767566688441,5.65643197,133.96,133.92,7.04952714]
[1767566688737,94.9403,133.99,133.92,7.04952714]
[1767566689043,5.65729179,133.98,133.92,7.04952714]
[1767566689238,5.65729179,133.97,133.92,7.04952714]
[1767566689436,5.65729179,133.96,133.92,7.04952714]
[1767566689634,94.9403,133.99,133.92,7.04952714]
[1767566689830,5.65774696,133.98,133.92,7.04952714]
[1767566690034,5.65774696,133.97,133.92,7.04952714]
[1767566690235,5.65774696,133.96,133.92,7.04952714]
[1767566690544,94.9403,133.99,133.92,7.04952714]
[1767566690735,5.65699976,133.98,133.92,7.04952714]
[1767566690929,5.65699976,133.97,133.92,7.04952714]
[1767566691244,5.65699976,133.96,133.92,7.04952714]
[1767566691443,5.65699976,133.95,133.92,7.04952714]
[1767566691646,94.9403,133.99,133.92,7.04952714]
[1767566691844,5.6576115,133.98,133.92,7.04952714]
[1767566692040,5.6576115,133.97,133.92,7.04952714]
[1767566692241,94.9403,133.99,133.92,7.04952714]
[1767566692442,5.65840486,133.98,133.92,7.04952714]
[1767566692742,5.65840486,133.97,133.92,7.04952714]
[1767566692941,5.65840486,133.96,133.92,7.04952714]
[1767566693244,5.65840486,133.95,133.92,7.04952714]
[1767566693442,94.9403,133.99,133.92,7.04952714]
[1767566693743,5.65937152,133.98,133.92,7.04952714]
[1767566693942,5.65937152,133.97,133.92,7.04952714]
[1767566694146,5.65937152,133.96,133.92,7.04952714]
[1767566694338,5.65937152,133.95,133.92,7.04952714]
[1767566694539,94.9403,133.99,133.92,7.04952714]
[1767566694738,5.66064348,133.98,133.92,7.04952714]
[1767566694943,5.66064348,133.97,133.92,7.04952714]
[1767566695146,5.66064348,133.96,133.92,7.04952714]
[1767566695446,5.66064348,133.95,133.92,7.04952714]
[1767566695639,94.9403,133.99,133.92,7.04952714]
[1767566695839,5.66279229,133.98,133.92,7.04952714]
[1767566696040,5.66279229,133.97,133.92,7.04952714]
[1767566696249,5.66279229,133.96,133.92,7.04952714]
[1767566696440,5.66279229,133.95,133.92,7.04952714]
[1767566696736,94.9403,133.99,133.92,7.04952714]
[1767566696939,5.6631351,133.98,133.92,7.04952714]
[1767566697144,5.6631351,133.97,133.92,7.04952714]
[1767566697448,5.6631351,133.96,133.92,7.04952714]
[1767566697650,5.6631351,133.95,133.92,7.04952714]
[1767566697850,94.9403,133.99,133.92,7.04952714]
[1767566698051,5.66338642,133.98,133.92,7.04952714]
[1767566698346,5.66338642,133.97,133.92,7.04952714]
[1767566698551,5.66338642,133.96,133.92,7.04952714]
[1767566698862,5.66338642,133.95,133.92,7.04952714]
[1767566699151,6.7204,133.98,133.92,7.04952714]
[1767566699352,5.66313676,133.97,133.92,7.04952714]
[1767566699553,5.66313676,133.96,133.92,7.04952714]
[1767566699752,5.66313676,133.95,133.92,7.04952714]
[1767566699953,6.7204,133.98,133.92,7.04952714]
[1767566700153,5.66313676,133.97,133.92,7.04952714]
[1767566700351,5.66313676,133.96,133.92,7.04952714]
[1767566700544,5.66313676,133.95,133.92,7.04952714]
[1767566700744,6.7204,133.98,133.92,7.04952714]
[1767566700945,5.66309586,133.97,133.92,7.04952714]
[1767566701147,5.66309586,133.96,133.92,7.04952714]
[1767566701348,5.66309586,133.95,133.92,7.04952714]
[1767566701546,6.7204,133.98,133.92,7.04952714]
[1767566701746,5.66298622,133.97,133.92,7.04952714]
[1767566701945,5.66298622,133.96,133.92,7.04952714]
[1767566702144,5.66298622,133.95,133.92,7.04952714]
[1767566702344,6.7204,133.98,133.92,7.04952714]
[1767566702546,5.66289137,133.97,133.92,7.04952714]
[1767566702852,5.66289137,133.96,133.92,7.04952714]
[1767566703047,88.22,133.99,133.92,7.04952714]
[1767566704555,94.9404,133.99,133.92,7.04952714]
[1767566708657,94.9404,133.99,133.93,0.32129327]
[1767566711957,88.22,133.99,133.94,0.32129327]
[1767566715159,5.63095056,133.98,133.94,0.32129327]
[1767566715360,88.22,133.99,133.94,0.32129327]
[1767566715562,5.63032064,133.98,133.94,0.32129327]
[1767566715860,88.22,133.99,133.94,0.32129327]
[1767566716061,5.63032064,133.98,133.94,0.32129327]
[1767566716259,88.22,133.99,133.94,0.32129327]
[1767566716561,5.62977789,133.98,133.94,0.32129327]
[1767566716860,88.22,133.99,133.94,0.32129327]
[1767566717061,5.62977789,133.98,133.94,0.32129327]
[1767566717261,88.22,133.99,133.94,0.32129327]
[1767566717463,5.62930611,133.98,133.94,0.32129327]
[1767566717659,88.22,133.99,133.94,0.32129327]
[1767566717851,5.62930611,133.98,133.94,0.32129327]
[1767566718055,88.22,133.99,133.94,0.32129327]
[1767566718258,5.62930611,133.98,133.94,0.32129327]
[1767566718458,88.22,133.99,133.94,0.32129327]
[1767566718662,5.62889433,133.98,133.94,0.32129327]
[1767566718858,88.22,133.99,133.94,0.32129327]
[1767566719061,5.62889433,133.98,133.94,0.32129327]
[1767566719361,88.22,133.99,133.94,0.32129327]
[1767566719558,5.62851782,133.98,133.94,0.32129327]
[1767566719764,88.22,133.99,133.94,0.32129327]
[1767566720062,5.62851782,133.98,133.94,0.32129327]
[1767566720259,88.22,133.99,133.94,0.32129327]
[1767566720464,5.6256701,133.98,133.94,0.32129327]
[1767566720667,88.22,133.99,133.94,0.32129327]
[1767566720963,5.6256701,133.98,133.94,0.32129327]
[1767566721164,88.22,133.99,133.94,0.32129327]
[1767566721364,5.62538253,133.98,133.94,0.32129327]
[1767566721557,88.22,133.99,133.94,0.32129327]
[1767566721757,5.62538253,133.98,133.94,0.32129327]
[1767566721967,88.22,133.99,133.94,0.32129327]
[1767566722157,5.62538253,133.98,133.94,0.32129327]
[1767566722357,88.22,133.99,133.94,0.32129327]
[1767566722567,5.62512812,133.98,133.94,0.32129327]
[1767566722765,88.22,133.99,133.94,0.32129327]
[1767566722964,5.62512808,133.98,133.94,0.32129327]
[1767566723153,88.22,133.99,133.94,0.32129327]
[1767566723361,5.62492745,133.98,133.94,0.32129327]
[1767566723559,88.22,133.99,133.94,0.32129327]
[1767566723760,5.62492745,133.98,133.94,0.32129327]
[1767566723965,88.22,133.99,133.94,0.32129327]
[1767566724167,5.62492745,133.98,133.94,0.32129327]
[1767566724466,88.22,133.99,133.94,0.32129327]
[1767566724670,5.62476091,133.98,133.94,0.32129327]
[1767566724860,88.22,133.99,133.94,0.32129327]
[1767566725062,5.62476091,133.98,133.94,0.32129327]
[1767566725261,88.22,133.99,133.93,6.7228]
[1767566725462,5.62469754,133.98,133.93,6.7228]
[1767566725662,88.22,133.99,133.93,6.7228]
[1767566725870,5.62469754,133.98,133.93,6.7228]
[1767566726069,88.22,133.99,133.93,6.7228]
[1767566726269,5.62468395,133.98,133.93,6.7228]
[1767566726570,88.22,133.99,133.93,6.7228]
[1767566726762,5.6247298,133.98,133.93,6.7228]
[1767566726961,88.22,133.99,133.93,6.7228]
[1767566727166,5.6247298,133.98,133.93,6.7228]
[1767566727464,88.22,133.99,133.93,6.7228]
[1767566727664,5.62478583,133.98,133.93,6.7228]
[1767566727861,88.22,133.99,133.93,6.7228]
[1767566728067,5.62478583,133.98,133.93,6.7228]
[1767566728365,88.22,133.99,133.93,6.7228]
[1767566728566,5.62486085,133.98,133.93,6.7228]
[1767566728770,88.22,133.99,133.93,6.7228]
[1767566728971,5.62486085,133.98,133.93,6.7228]
[1767566729172,88.22,133.99,133.93,6.7228]
[1767566729470,5.62494941,133.98,133.93,6.7228]
[1767566729662,88.22,133.99,133.93,6.7228]
[1767566729862,5.62494941,133.98,133.93,6.7228]
[1767566730157,88.22,133.99,133.93,6.7228]
[1767566730362,5.62467244,133.98,133.93,6.7228]
[1767566730572,88.22,133.99,133.93,6.7228]
[1767566730770,5.62467244,133.98,133.93,6.7228]
[1767566730970,88.22,133.99,133.93,6.7228]
[1767566731170,5.62467244,133.98,133.93,6.7228]
[1767566731374,88.22,133.99,133.93,6.7228]
[1767566731670,5.62456305,133.98,133.93,6.7228]
[1767566731871,88.22,133.99,133.93,6.7228]
[1767566732074,5.62456534,133.98,133.93,6.7228]
[1767566732274,88.22,133.99,133.93,6.7228]
[1767566732476,5.62447225,133.98,133.93,6.7228]
[1767566732777,88.22,133.99,133.93,6.7228]
[1767566732976,5.62446996,133.98,133.93,6.7228]
[1767566733172,88.22,133.99,133.93,6.7228]
[1767566733367,5.62441292,133.98,133.93,6.7228]
[1767566733674,88.22,133.99,133.93,6.7228]
[1767566733871,5.62441292,133.98,133.92,0.32129327]
[1767566734073,5.62441292,133.97,133.91,6.7235]
[1767566734267,5.62441292,133.96,133.91,7.05622378]
[1767566734575,94.94,133.99,133.91,7.05622378]
[1767566734776,7.33837782,133.98,133.91,7.05622378]
[1767566734976,5.62491519,133.97,133.91,7.05622378]
[1767566735178,5.62491519,133.96,133.89,7.04784139]
[1767566735376,93.82491519,133.95,133.86,0.32324139]
[1767566735576,5.62491519,133.94,133.86,0.32324139]
[1767566735776,5.62491519,133.93,133.86,0.32324139]
[1767566735969,5.62491519,133.92,133.86,0.32324139]
[1767566736171,88.2,133.95,133.86,0.32324139]
[1767566736369,5.62340241,133.94,133.86,0.32324139]
[1767566736569,5.62340241,133.93,133.87,7.04874139]
[1767566736780,94.922,133.95,133.87,7.04874139]
[1767566737078,5.62340781,133.94,133.87,7.04874139]
[1767566737379,5.62340781,133.93,133.87,7.04874139]
[1767566737580,94.922,133.95,133.87,7.04874139]
[1767566737779,5.6209778,133.94,133.87,7.04874139]
[1767566737972,5.6209778,133.93,133.87,7.04874139]
[1767566738169,94.922,133.95,133.87,7.04874139]
[1767566738367,5.61891532,133.94,133.87,7.04874139]
[1767566738571,5.61891532,133.93,133.87,7.04874139]
[1767566738773,94.922,133.95,133.87,7.04874139]
[1767566738972,5.61891532,133.94,133.87,7.04874139]
[1767566739173,5.61891532,133.93,133.87,7.04874139]
[1767566739370,94.922,133.95,133.87,7.04874139]
[1767566739574,5.61710899,133.94,133.87,7.04874139]
[1767566739777,5.61710899,133.93,133.87,7.04874139]
[1767566740084,94.922,133.95,133.87,7.04874139]
[1767566740286,5.61693145,133.94,133.87,7.04874139]
[1767566740585,5.61693145,133.93,133.87,7.04874139]
[1767566740782,96.63546263,133.95,133.87,7.04874139]
[1767566740984,5.61555682,133.94,133.87,7.04874139]
[1767566741186,5.61555682,133.93,133.87,7.04874139]
[1767566741381,96.63546263,133.95,133.87,7.04874139]
[1767566741587,5.61381711,133.94,133.87,7.04874139]
[1767566741785,5.61381711,133.93,133.88,0.32324139]
[1767566741985,89.91346263,133.95,133.88,0.32324139]
[1767566742184,5.61380943,133.94,133.88,0.32324139]
[1767566742385,89.91346263,133.95,133.88,0.32324139]
[1767566742585,5.61245996,133.94,133.88,0.32324139]
[1767566742786,89.91346263,133.95,133.88,0.32324139]
[1767566743090,5.61245996,133.94,133.88,0.32324139]
[1767566743291,89.91346263,133.95,133.88,0.32324139]
[1767566743495,5.61126445,133.94,133.88,0.32324139]
[1767566743788,89.91346263,133.95,133.89,6.7248]
[1767566743990,5.61126445,133.94,133.89,6.7248]
[1767566744185,89.91346263,133.95,133.89,6.7248]
[1767566744385,5.61017044,133.94,133.89,6.7248]
[1767566744592,89.91346263,133.95,133.89,6.7248]
[1767566744791,5.61017044,133.94,133.89,6.7248]
[1767566745090,89.91346263,133.95,133.89,6.7248]
[1767566745290,5.60948704,133.94,133.89,6.7248]
[1767566745592,89.91346263,133.95,133.89,6.7248]
[1767566745792,5.60948704,133.94,133.89,7.04804139]
[1767566746090,88.2,133.95,133.89,7.04804139]
[1767566746286,5.60915521,133.94,133.89,7.04804139]
[1767566746493,1.71346263,133.97,133.9,7.04734139]
[1767566746692,5.60827253,133.96,133.91,0.32324139]
[1767566746889,7.253e-05,133.95,133.91,0.32324139]
[1767566747089,1.71346263,133.99,133.92,0.32324139]
[1767566747888,88.22,134.01,133.95,0.32324139]
[1767566750393,88.22,134.01,133.94,6.7221]
[1767566757696,1.71346263,134.0,133.94,6.7221]
[1767566758902,1.71346263,134.0,133.93,0.32324139]
[1767566763802,8.43296263,134.0,133.93,0.32324139]
[1767566766606,88.22,134.01,133.89,192.8274]
[1767566766607,5.58395112,133.99,133.91,0.33031631]
[1767566766806,5.58395112,133.98,133.91,0.33031631]
[1767566767008,195.4185039,134.01,133.91,0.33031631]
[1767566767303,5.58425026,134.0,133.91,0.33031631]
[1767566767509,6.721,133.97,133.89,95.27491631]
[1767566768095,6.721,133.97,133.9,0.33031631]
[1767566775310,6.721,133.97,133.91,0.33031631]
[1767566776919,6.7203,133.99,133.92,0.33031631]
[1767566777117,5.58526582,133.98,133.92,0.33031631]
[1767566777414,88.22,134.01,133.92,0.33031631]
[1767566777608,5.5850859,134.0,133.92,0.33031631]
[1767566777804,88.22,134.01,133.92,0.33031631]
[1767566778010,5.58507933,134.0,133.92,0.33031631]
[1767566778218,88.22,134.01,133.92,0.33031631]
[1767566778517,5.5852878,134.0,133.92,0.33031631]
[1767566778720,94.9393,134.01,133.93,7.05311631]
[1767566778909,5.58499922,134.0,133.93,7.05311631]
[1767566779104,94.9393,134.01,133.93,7.05311631]
[1767566779407,5.58464045,134.0,133.93,7.05311631]
[1767566779702,94.9393,134.01,133.93,7.05311631]
[1767566779904,5.58472942,134.0,133.93,7.05311631]
[1767566780102,94.9393,134.01,133.93,7.05311631]
[1767566780313,5.58553156,134.0,133.93,7.05311631]
[1767566780515,94.9393,134.01,133.93,7.05311631]
[1767566780714,5.58527713,134.0,133.93,7.05311631]
[1767566780929,94.9393,134.01,133.93,7.05311631]
[1767566781103,5.58527713,134.0,133.93,7.05311631]
[1767566781307,94.9393,134.01,133.93,7.05311631]
[1767566781619,5.58580952,134.0,133.93,7.05311631]
[1767566781813,94.9393,134.01,133.93,7.05311631]
[1767566782004,5.58580952,134.0,133.93,7.05311631]
[1767566782211,94.9393,134.01,133.94,0.33031631]
[1767566782509,5.58645446,134.0,133.94,0.33031631]
[1767566782710,94.9393,134.01,133.94,0.33031631]
[1767566782910,5.58645444,134.0,133.94,0.33031631]
[1767566783120,94.9393,134.01,133.94,0.33031631]
[1767566783417,5.5870435,134.0,133.94,0.33031631]
[1767566783618,94.9393,134.01,133.94,0.33031631]
[1767566783817,5.58720369,134.0,133.94,0.33031631]
[1767566784021,88.22,134.01,133.94,0.33031631]
[1767566784221,2.6773039,134.06,133.94,0.33031631]
[1767566784520,88.2,134.05,133.94,0.33031631]
[1767566784909,94.9172,134.05,133.97,6.7208]
[1767566786723,94.9172,134.05,133.97,7.05111631]
[1767566787222,115.735417,134.07,133.98,7.05061631]
[1767566787223,17.979517,134.07,133.98,7.05061631]
[1767566787418,88.2,134.06,133.98,7.05061631]
[1767566787818,88.2,134.06,133.99,0.33031631]
[1767566788517,94.9165,134.06,133.99,0.33031631]
[1767566790928,6.717,134.05,133.97,0.31928118]
[1767566792611,6.717,134.05,133.97,7.04008118]